fUSD/lending_fUSD_20250507
["ID","MTS","AMOUNT","RATE_DAILY","PERIOD"]
[360187896,1746610245421,-474.689215,0.0001958,2]
[360187897,1746610245433,-404.03374866,0.0001958,2]
[360187898,1746610245442,-255.96625134,0.0001958,2]
[360187899,1746610245454,-329.13374866,0.0001958,2]
[360187900,1746610245463,-2081.46,0.0001958,2]
[360187901,1746610245473,-450.0,0.0001958,2]
[360187902,1746610245482,-450.0,0.0001958,2]
[360187903,1746610245491,-450.0,0.0001958,2]
[360187904,1746610245501,-866.75,0.0001958,2]
[360187905,1746610245510,-196.70625134,0.0001958,2]
[360187906,1746610245522,-253.29374866,0.0001958,2]
[360187907,1746610245531,-987.62,0.0001958,2]
[360187908,1746610245541,-1553.93,0.0001958,2]
[360187909,1746610245550,-450.0,0.0001958,2]
[360187910,1746610245559,-480.95,0.0001958,2]
[360187911,1746610245568,-1525.89,0.0001958,2]
[360187912,1746610245578,-450.0,0.0001958,2]
[360187913,1746610245587,-450.0,0.0001958,2]
[360187914,1746610245596,-450.0,0.0001958,2]
[360187915,1746610245606,-450.0,0.0001958,2]
[360187916,1746610245616,-450.0,0.0001958,2]
[360187917,1746610245625,-228.0,0.0001958,2]
[360187918,1746610245635,-450.0,0.0001958,2]
[360187919,1746610245644,-151.0,0.00019581,2]
[360187920,1746610245654,-151.0,0.00019581,2]
[360187921,1746610245663,-151.0,0.00019581,2]
[360187922,1746610245673,-208.744571,0.00019581,2]
[360187923,1746610245682,-208.744571,0.00019581,2]
[360187924,1746610245691,-156.152144,0.00019581,2]
[360187925,1746610245701,-156.152144,0.00019581,2]
[360187926,1746610245711,-151.0,0.00019581,2]
[360187927,1746610245720,-151.0,0.00019581,2]
[360187928,1746610245729,-151.0,0.00019581,2]
[360187929,1746610245739,-251.777517,0.00019581,2]
[360187930,1746610245748,-251.777517,0.00019581,2]
[360187931,1746610245758,-151.0,0.00019581,2]
[360187932,1746610245768,-151.0,0.00019581,2]
[360187933,1746610245777,-151.0,0.00019581,2]
[360187934,1746610245790,-314.062173,0.00019581,2]
[360187935,1746610245799,-314.062173,0.00019581,2]
[360187936,1746610245809,-10604.13885784,0.00019581,2]
[360187937,1746610245825,-454.93304998,0.00019581,2]
[360187938,1746610245843,-558.89350208,0.00019581,2]
[360187939,1746610246178,-151.0,0.00019534,2]
[360187940,1746610246187,-2564.20441341,0.00019581,2]
[360187941,1746610246515,-151.0,0.00019533,2]
[360187942,1746610246526,-152.0,0.00019581,2]
[360187943,1746610246543,-318.8803487,0.00019581,2]
[360187944,1746610246554,-310.0594,0.00019581,2]
[360187945,1746610246579,-1554.76,0.00019581,2]
[360187946,1746610246591,-5053.72517932,0.00019581,2]
[360187947,1746610250601,152.01,0.00018602,2]
[360187948,1746610250831,152.01,0.0001862,2]
[360187949,1746610251050,152.01,0.00018639,2]
[360187950,1746610251262,152.01,0.00018658,2]
[360187951,1746610251474,152.01,0.00018676,2]
[360187952,1746610251676,152.01,0.00018695,2]
[360187953,1746610254678,1433.0,0.000194,2]
[360187954,1746610295396,210.51,0.0001914,2]
[360187955,1746610305385,169.70838554,0.00019488,2]
[360187956,1746610332577,151.46144735,0.00019481,2]
[360187957,1746610399867,1074.0,0.000195,2]
[360187958,1746610403979,1074.0,0.000195,2]
[360187959,1746610474653,171.72835767,0.00019433,2]
[360187960,1746610560004,150.0,0.00018986,7]
[360187961,1746610566552,250.0,0.0001858,2]
[360187962,1746610607519,276.18,0.00016663,2]
[360187963,1746610607722,276.18,0.00018927,2]
[360187964,1746610619135,1000.0,0.00018581,2]
[360187965,1746610679374,801.74,0.00018583,2]
[360187966,1746610744312,163.64994972,0.00019488,2]
[360187967,1746610762611,157.55048229,0.00019431,2]
[360187968,1746610765918,295.88873919,0.00019419,2]
[360187969,1746610770946,295.88873915,0.00019429,2]
[360187970,1746610775911,295.88873915,0.00019439,2]
[360187971,1746610780907,295.88873915,0.0001945,2]
[360187972,1746610785944,295.88873915,0.0001946,2]
[360187973,1746610790625,1562.7067,0.00019421,2]
[360187974,1746610790908,295.88873915,0.0001947,2]
[360187975,1746610795908,295.88873915,0.0001948,2]
[360187976,1746610800897,295.88873915,0.00019491,2]
[360187977,1746610921580,200.0,0.0001857,2]
[360187978,1746610938093,152.0,0.00029813,30]
[360187979,1746610962797,164.43544743,0.00019487,2]
[360187980,1746610974719,935.67431035,0.00019431,2]
[360187981,1746610979495,935.67431035,0.0001944,2]
[360187982,1746610984440,935.67431035,0.0001945,2]
[360187983,1746610989447,935.67431035,0.00019459,2]
[360187984,1746610994420,935.67431035,0.00019468,2]
[360187985,1746610999440,935.67431035,0.00019478,2]
[360187986,1746611004430,935.67431035,0.00019487,2]
[360187987,1746611009484,935.67431035,0.00019496,2]
[360187989,1746611070849,690.0,0.00018561,2]
[360187990,1746611078330,169.04,0.00019178,2]
[360187991,1746611090603,172.6829814,0.00019432,2]
[360187992,1746611131813,1000.0,0.000195,2]
[360187994,1746611147649,247.45,0.00018555,2]
[360187995,1746611150085,150.0,0.00018567,2]
[360187996,1746611167299,497.822367,0.00019403,2]
[360187999,1746611254860,300.101,0.0003,30]
[360188000,1746611261427,321.12480995,0.00019419,2]
[360188001,1746611266421,321.12480987,0.00019429,2]
[360188002,1746611271416,321.12480987,0.00019439,2]
[360188003,1746611276436,321.12480987,0.0001945,2]
[360188004,1746611281468,321.12480987,0.0001946,2]
[360188005,1746611286437,321.12480987,0.0001947,2]
[360188006,1746611291452,321.12480987,0.0001948,2]
[360188007,1746611296449,321.12480987,0.00019491,2]
[360188008,1746611310346,200.0,0.00018567,2]
[360188009,1746611315772,10155.21801483,0.00019,4]
[360188010,1746611325815,187.13486207,0.00019431,2]
[360188011,1746611330832,187.13486207,0.0001944,2]
[360188012,1746611335818,187.13486207,0.00019449,2]
[360188013,1746611340842,187.13486207,0.00019458,2]
[360188014,1746611345848,187.13486207,0.00019467,2]
[360188015,1746611351204,187.13486207,0.00019475,2]
[360188016,1746611355809,187.13486207,0.00019484,2]
[360188017,1746611360830,187.13486207,0.00019493,2]
[360188041,1746611431769,-321.12480987,0.00019501,2]
[360188042,1746611431779,-151.0,0.00019501,2]
[360188043,1746611431788,-187.13486207,0.00019502,2]
[360188044,1746611431797,-303.62643326,0.00019504,2]
[360188045,1746611431808,-58.9522542,0.00019504,2]
[360188046,1746611431817,-300.0,0.00019505,2]
[360188047,1746611431826,-1200.0,0.00019505,2]
[360188048,1746611431835,-8979.2088188,0.00019506,2]
[360188049,1746611431846,-3610.19850992,0.00019506,2]
[360188050,1746611431857,-318.72803597,0.00019506,2]
[360188051,1746611431868,-451.3,0.00019506,2]
[360188052,1746611431878,-15422.6634235,0.00019506,2]
[360188334,1746611435717,166.68,0.0001913,2]
[360188337,1746611437822,-1048.83,0.00019506,2]
[360188338,1746611437833,-1122.3468552,0.00019506,2]
[360188339,1746611437980,-14912.93443408,0.00019506,2]
[360188422,1746611439914,-474.589115,0.00019506,2]
[360188423,1746611440125,-329.42477637,0.00019506,2]
[360188515,1746611445933,-10287.47848011,0.00019506,2]
[360188516,1746611445943,-201.04674666,0.00019506,2]
[360188517,1746611445953,-151.0,0.00019507,2]
[360188518,1746611445962,-207.4,0.00019507,2]
[360188519,1746611445972,-321.12480987,0.00019511,2]
[360188520,1746611445981,-187.13486207,0.00019511,2]
[360188521,1746611445991,-38644.81510129,0.00019515,2]
[360188522,1746611446130,-319934.36566597,0.00019515,2]
[360188523,1746611446141,-1415.79810418,0.00019515,2]
[360188857,1746611501483,630.89412602,0.00019416,2]
[360188872,1746611555206,204.22,0.00018567,2]
[360188873,1746611559722,150.0,0.0003,30]
[360188874,1746611601830,1000.0,0.00018558,2]
[360188875,1746611620984,469.41,0.00019419,2]
[360188876,1746611648729,150.0,0.00018986,7]
[360188877,1746611667258,529.45170266,0.0001942,2]
[360188878,1746611668778,310.61,0.00018558,2]
[360188879,1746611669016,300.31,0.0001664,2]
[360188880,1746611669442,300.31,0.00018904,2]
[360188881,1746611672262,529.45170264,0.0001943,2]
[360188882,1746611677238,529.45170264,0.0001944,2]
[360188883,1746611682239,529.45170264,0.0001945,2]
[360188884,1746611687253,529.45170264,0.0001946,2]
[360188885,1746611691051,500.0,0.00029589,30]
[360188886,1746611691319,500.0,0.00029863,30]
[360188887,1746611692367,529.45170264,0.0001947,2]
[360188888,1746611697237,529.45170264,0.0001948,2]
[360188889,1746611702241,529.45170264,0.0001949,2]
[360188890,1746611707245,529.45170264,0.000195,2]
[360188891,1746611721607,2106.1887,0.00019419,2]
[360188892,1746611746797,345.15322964,0.00019419,2]
[360188894,1746611751805,345.15322955,0.00019429,2]
[360188895,1746611756813,345.15322955,0.00019439,2]
[360188896,1746611758269,500.0,0.00018559,2]
[360188897,1746611761796,345.15322955,0.00019449,2]
[360188898,1746611766849,345.15322955,0.00019459,2]
[360188900,1746611771798,345.15322955,0.0001947,2]
[360188901,1746611776847,345.15322955,0.0001948,2]
[360188902,1746611781811,345.15322955,0.0001949,2]
[360188903,1746611786880,345.15322955,0.000195,2]
[360188905,1746611858635,152.52,0.00018556,2]
[360189053,1746611903915,152.0,0.00014844,2]
[360189054,1746611940221,633.77559,0.00019419,2]
[360189055,1746611951296,500.0,0.00018549,2]
[360189056,1746612013732,176.48390088,0.00019419,2]
[360189062,1746612018657,176.48390088,0.00019464,2]
[360189065,1746612019340,227.8948958,0.00019431,2]
[360189066,1746612032118,241.71912496,0.00019499,2]
[360189074,1746612057502,1403.0,0.000194,2]
[360189075,1746612066072,250.0,0.00017,2]
[360189076,1746612067137,300.0,0.00019,2]
[360189077,1746612100378,169.04,0.00019178,2]
[360189078,1746612162389,161.14608332,0.00019497,2]
[360189079,1746612238007,164.4354474,0.00019431,2]
[360189080,1746612247109,607.6883275,0.00019417,2]
[360189081,1746612252106,607.68832743,0.00019427,2]
[360189082,1746612257109,607.68832743,0.00019437,2]
[360189083,1746612262150,607.68832743,0.00019448,2]
[360189084,1746612263369,1074.0,0.000195,2]
[360189085,1746612267160,607.68832743,0.00019458,2]
[360189086,1746612272096,607.68832743,0.00019468,2]
[360189087,1746612277327,607.68832743,0.00019478,2]
[360189088,1746612282111,607.68832743,0.00019489,2]
[360189089,1746612287087,607.68832743,0.00019499,2]
[360189090,1746612325163,176.48390088,0.00019418,2]
[360189091,1746612339652,500.0,0.00029589,30]
[360189092,1746612339896,500.0,0.00029863,30]
[360189093,1746612385225,23900.0,0.00018533,2]
[360189094,1746612483625,5093.61,0.00019415,2]
[360189114,1746612632441,-207.4,0.00019502,2]
[360189116,1746612632451,-151.0,0.00019502,2]
[360189118,1746612632460,-700.04493665,0.00019503,2]
[360189119,1746612632472,-424.99691067,0.00019503,2]
[360189120,1746612637773,-717.7899953,0.00019503,2]
[360189122,1746612637826,-725.38841321,0.00019503,2]
[360189123,1746612637836,-151.0,0.00019503,2]
[360189124,1746612637845,-192.32531325,0.00019503,2]
[360189125,1746612637855,-1200.0,0.00019506,2]
[360189126,1746612637864,-300.0,0.00019506,2]
[360189127,1746612638086,-200.0,0.00019507,2]
[360189128,1746612638098,-16646.93533367,0.00019507,5]
[360189129,1746612638108,-500.0,0.00019507,2]
[360189130,1746612638117,-500.0,0.00019507,2]
[360189131,1746612638127,-500.0,0.00019507,2]
[360189132,1746612638136,-500.0,0.00019507,2]
[360189133,1746612638145,-500.0,0.00019507,2]
[360189134,1746612638155,-500.0,0.00019507,2]
[360189135,1746612638164,-500.0,0.00019507,2]
[360189136,1746612638174,-500.0,0.00019507,2]
[360189137,1746612638183,-500.0,0.00019507,2]
[360189138,1746612638193,-500.0,0.00019507,2]
[360189140,1746612638203,-500.0,0.00019507,2]
[360189141,1746612638212,-500.0,0.00019507,2]
[360189142,1746612638222,-500.0,0.00019507,2]
[360189143,1746612638231,-500.0,0.00019507,2]
[360189144,1746612638242,-500.0,0.00019507,2]
[360189145,1746612638253,-500.0,0.00019507,2]
[360189146,1746612638263,-500.0,0.00019507,2]
[360189147,1746612638272,-500.0,0.00019507,2]
[360189148,1746612638281,-500.0,0.00019507,2]
[360189149,1746612638290,-500.0,0.00019507,2]
[360189150,1746612638299,-500.0,0.00019507,2]
[360189151,1746612638308,-500.0,0.00019507,2]
[360189152,1746612638319,-500.0,0.00019507,2]
[360189153,1746612638328,-500.0,0.00019507,2]
[360189155,1746612638337,-500.0,0.00019507,2]
[360189156,1746612638347,-500.0,0.00019507,2]
[360189157,1746612638356,-500.0,0.00019507,2]
[360189158,1746612638365,-500.0,0.00019507,2]
[360189159,1746612638375,-500.0,0.00019507,2]
[360189160,1746612638384,-210.98553791,0.00019507,2]
[360189161,1746612638394,-500.0,0.00019507,2]
[360189162,1746612638404,-151.0,0.00019507,2]
[360189163,1746612638413,-151.0,0.00019507,2]
[360189164,1746612638423,-610.74715122,0.00019507,2]
[360189165,1746612638435,-57.90470635,0.00019507,2]
[360189166,1746612638445,-200.0,0.0001951,2]
[360189167,1746612638454,-1000.0,0.00019513,2]
[360189168,1746612638463,-285.0,0.00019513,2]
[360189169,1746612638473,-2956.79394665,0.00019515,2]
[360189170,1746612638513,-659.16414995,0.00019515,2]
[360189171,1746612638561,-1756.27846413,0.00019515,2]
[360189172,1746612638574,-348.70935091,0.00019515,2]
[360189174,1746612640030,-20477.47832502,0.00019515,2]
[360189175,1746612640042,-8229.97702311,0.00019515,2]
[360189176,1746612640052,-450.0,0.00019517,2]
[360189177,1746612640063,-374.76373315,0.00019517,2]
[360189178,1746612640084,-183.73292885,0.00019517,2]
[360189179,1746612640094,-179.667918,0.00019517,2]
[360189180,1746612640103,-63.98019851,0.00019517,2]
[360189181,1746612640193,-273.62800018,0.00019517,2]
[360189182,1746612640246,-112.39180131,0.00019517,2]
[360189183,1746612640255,-450.0,0.00019517,2]
[360189184,1746612640265,-500.0,0.00019517,2]
[360189185,1746612640274,-210.83836096,0.00019517,2]
[360189186,1746612640284,-450.0,0.00019517,2]
[360189187,1746612640292,-450.0,0.00019517,2]
[360189188,1746612640303,-969.9,0.00019517,2]
[360189189,1746612640312,-640.53,0.00019517,2]
[360189190,1746612640322,-450.0,0.00019517,2]
[360189191,1746612640332,-450.0,0.00019517,2]
[360189192,1746612640341,-450.0,0.00019517,2]
[360189193,1746612640350,-181.85512276,0.00019517,2]
[360189194,1746612640360,-570.28,0.00019517,2]
[360189195,1746612640369,-450.0,0.00019517,2]
[360189196,1746612640378,-361.50651991,0.00019517,2]
[360189197,1746612640387,-450.0,0.00019517,2]
[360189198,1746612640396,-450.0,0.00019517,2]
[360189199,1746612640405,-450.0,0.00019517,2]
[360189200,1746612640415,-2087.59,0.00019517,2]
[360189201,1746612640427,-450.0,0.00019517,2]
[360189202,1746612640436,-450.0,0.00019517,2]
[360189203,1746612640445,-450.0,0.00019517,2]
[360189204,1746612640454,-450.0,0.00019517,2]
[360189205,1746612640465,-450.0,0.00019517,2]
[360189206,1746612640475,-450.0,0.00019517,2]
[360189207,1746612640486,-538.79,0.00019517,2]
[360189208,1746612640495,-450.0,0.00019517,2]
[360189209,1746612640504,-1036.37,0.00019517,2]
[360189210,1746612640513,-450.0,0.00019517,2]
[360189211,1746612640522,-67306.52,0.00019517,2]
[360189212,1746612640532,-450.0,0.00019517,2]
[360189213,1746612640541,-450.0,0.00019517,2]
[360189214,1746612640551,-450.0,0.00019517,2]
[360189215,1746612640562,-450.0,0.00019517,2]
[360189216,1746612640572,-450.0,0.00019517,2]
[360189217,1746612640581,-450.0,0.00019517,2]
[360189218,1746612640590,-450.0,0.00019517,2]
[360189219,1746612640599,-450.0,0.00019517,2]
[360189220,1746612640608,-450.0,0.00019517,2]
[360189221,1746612640617,-450.0,0.00019517,2]
[360189222,1746612640626,-811.93,0.00019517,2]
[360189223,1746612640636,-984.11,0.00019517,2]
[360189224,1746612640644,-450.0,0.00019517,2]
[360189225,1746612640655,-450.0,0.00019517,2]
[360189226,1746612640664,-508.3,0.00019517,2]
[360189227,1746612640675,-430.0,0.00019517,2]
[360189228,1746612640685,-450.0,0.00019517,2]
[360189229,1746612640695,-500.67,0.00019517,2]
[360189230,1746612640706,-532.18,0.00019517,2]
[360189231,1746612640715,-450.0,0.00019517,2]
[360189232,1746612640725,-508.49,0.00019517,2]
[360189233,1746612640735,-964.61,0.00019517,2]
[360189234,1746612640746,-350.0,0.00019517,2]
[360189235,1746612640755,-450.0,0.00019517,2]
[360189236,1746612640765,-450.0,0.00019517,2]
[360189237,1746612640775,-450.0,0.00019517,2]
[360189238,1746612640785,-1078.83,0.00019517,2]
[360189239,1746612640797,-508.37,0.00019517,2]
[360189240,1746612640807,-450.0,0.00019517,2]
[360189241,1746612640817,-450.0,0.00019517,2]
[360189242,1746612640827,-450.0,0.00019517,2]
[360189243,1746612640836,-1257.02,0.00019517,2]
[360189244,1746612640846,-1869.96,0.00019517,2]
[360189245,1746612640855,-450.0,0.00019517,2]
[360189246,1746612640865,-1595.31,0.00019517,2]
[360189247,1746612640874,-450.0,0.00019517,2]
[360189248,1746612640883,-491.28,0.00019517,2]
[360189249,1746612640892,-183.35498645,0.00019517,2]
[360189250,1746612640902,-480.11813342,0.00019517,2]
[360189251,1746612640911,-450.0,0.00019517,2]
[360189252,1746612640926,-450.0,0.00019517,2]
[360189253,1746612640936,-450.0,0.00019517,2]
[360189254,1746612640949,-470.0,0.00019517,2]
[360189255,1746612640958,-1347.96,0.00019517,2]
[360189256,1746612640967,-450.0,0.00019517,2]
[360189257,1746612640977,-2550.53,0.00019517,2]
[360189258,1746612640986,-1509.53,0.00019517,2]
[360189259,1746612640996,-1533.87,0.00019517,2]
[360189260,1746612641005,-687.66,0.00019517,2]
[360189261,1746612641014,-450.0,0.00019517,2]
[360189262,1746612641023,-450.0,0.00019517,2]
[360189263,1746612641032,-580.22,0.00019517,2]
[360189264,1746612641041,-583.35,0.00019517,2]
[360189265,1746612641050,-450.0,0.00019517,2]
[360189266,1746612641060,-493.22,0.00019517,2]
[360189267,1746612641069,-450.0,0.00019517,2]
[360189268,1746612641079,-450.0,0.00019517,2]
[360189269,1746612641088,-450.0,0.00019517,2]
[360189270,1746612641097,-450.0,0.00019517,2]
[360189271,1746612641106,-450.0,0.00019517,2]
[360189272,1746612641115,-450.0,0.00019517,2]
[360189273,1746612641125,-450.0,0.00019517,2]
[360189274,1746612641134,-450.0,0.00019517,2]
[360189275,1746612641144,-450.0,0.00019517,2]
[360189276,1746612641153,-1479.36,0.00019517,2]
[360189277,1746612641163,-1519.01,0.00019517,2]
[360189278,1746612641172,-450.0,0.00019517,2]
[360189279,1746612641181,-1603.07,0.00019517,2]
[360189280,1746612641190,-450.0,0.00019517,2]
[360189281,1746612641199,-1527.93,0.00019517,2]
[360189282,1746612641208,-450.0,0.00019517,2]
[360189283,1746612641217,-184.9203087,0.00019517,2]
[360189284,1746612641226,-174.04800126,0.00019517,2]
[360189285,1746612641235,-500.0,0.00019517,2]
[360189286,1746612641244,-185.71573069,0.00019517,2]
[360189287,1746612641255,-161.19721843,0.00019517,2]
[360189288,1746612641265,-500.0,0.00019517,2]
[360189289,1746612641274,-500.0,0.00019517,2]
[360189290,1746612641283,-500.0,0.00019517,2]
[360189291,1746612641292,-500.0,0.00019517,2]
[360189292,1746612641301,-500.0,0.00019517,2]
[360189293,1746612641310,-500.0,0.00019517,2]
[360189294,1746612641319,-224.69809483,0.00019517,2]
[360189295,1746612641327,-500.0,0.00019517,2]
[360189296,1746612641336,-189.14642215,0.00019517,2]
[360189297,1746612641345,-600.0,0.00019517,2]
[360189298,1746612641354,-305.79230223,0.00019518,2]
[360189299,1746612641363,-176171.63105645,0.00019518,2]
[360189300,1746612641372,-450.0,0.00019518,2]
[360189301,1746612641382,-450.0,0.00019518,2]
[360189302,1746612641391,-450.0,0.00019518,2]
[360189303,1746612641400,-450.0,0.00019518,2]
[360189304,1746612641412,-450.0,0.00019518,2]
[360189305,1746612641422,-450.0,0.00019518,2]
[360189306,1746612641431,-450.0,0.00019518,2]
[360189307,1746612641440,-450.0,0.00019518,2]
[360189308,1746612641449,-557.03,0.00019518,2]
[360189309,1746612641459,-450.0,0.00019518,2]
[360189310,1746612641467,-450.0,0.00019518,2]
[360189311,1746612641477,-214.0,0.00019518,2]
[360189312,1746612641486,-496.36,0.00019518,2]
[360189313,1746612641495,-450.0,0.00019518,2]
[360189314,1746612641504,-450.0,0.00019518,2]
[360189315,1746612641513,-368.7,0.00019518,2]
[360189316,1746612641522,-169.42777828,0.00019518,2]
[360189317,1746612641531,-450.0,0.00019518,2]
[360189318,1746612641539,-450.0,0.00019518,2]
[360189319,1746612641548,-450.0,0.00019518,2]
[360189320,1746612641557,-450.0,0.00019518,2]
[360189321,1746612641566,-450.0,0.00019518,2]
[360189322,1746612641576,-450.0,0.00019518,2]
[360189323,1746612641585,-450.0,0.00019518,2]
[360189324,1746612641594,-450.0,0.00019518,2]
[360189325,1746612641603,-450.0,0.00019518,2]
[360189326,1746612641612,-450.0,0.00019518,2]
[360189327,1746612641621,-450.0,0.00019518,2]
[360189328,1746612641630,-510.41771093,0.00019518,2]
[360189329,1746612641639,-293.46428437,0.00019518,2]
[360189330,1746612641648,-450.0,0.00019518,2]
[360189331,1746612641658,-450.0,0.00019518,2]
[360189332,1746612641666,-450.0,0.00019518,2]
[360189333,1746612641676,-450.0,0.00019518,2]
[360189334,1746612641685,-450.0,0.00019518,2]
[360189335,1746612641694,-292.23366017,0.00019518,2]
[360189336,1746612641703,-450.0,0.00019518,2]
[360189337,1746612641712,-236.92906542,0.00019518,2]
[360189338,1746612641721,-450.0,0.00019518,2]
[360189339,1746612641730,-450.0,0.00019518,2]
[360189340,1746612641739,-155.08906725,0.00019518,2]
[360189341,1746612641748,-450.0,0.00019518,2]
[360189342,1746612641757,-450.0,0.00019518,2]
[360189343,1746612641766,-450.0,0.00019518,2]
[360189344,1746612641776,-450.0,0.00019518,2]
[360189345,1746612641785,-545.70651345,0.00019518,2]
[360189346,1746612641794,-450.0,0.00019518,2]
[360189347,1746612641803,-450.0,0.00019518,2]
[360189348,1746612641812,-450.0,0.00019518,2]
[360189349,1746612641821,-450.0,0.00019518,2]
[360189350,1746612641830,-450.0,0.00019518,2]
[360189351,1746612641839,-450.0,0.00019518,2]
[360189352,1746612641848,-450.0,0.00019518,2]
[360189353,1746612641858,-450.0,0.00019518,2]
[360189354,1746612641867,-450.0,0.00019518,2]
[360189355,1746612641876,-450.0,0.00019518,2]
[360189356,1746612641885,-450.0,0.00019518,2]
[360189357,1746612641895,-608.7,0.00019518,2]
[360189358,1746612641905,-641.05,0.00019518,2]
[360189359,1746612641916,-450.0,0.00019518,2]
[360189360,1746612641928,-450.0,0.00019518,2]
[360189361,1746612641937,-450.0,0.00019518,2]
[360189362,1746612641946,-450.0,0.00019518,2]
[360189363,1746612641955,-744.23,0.00019518,2]
[360189364,1746612641966,-581.04,0.00019518,2]
[360189365,1746612641977,-163.28077488,0.00019518,2]
[360189366,1746612641986,-557.49,0.00019518,2]
[360189367,1746612641997,-450.0,0.00019518,2]
[360189368,1746612642006,-921.47,0.00019518,2]
[360189369,1746612642015,-450.0,0.00019518,2]
[360189370,1746612642024,-450.0,0.00019518,2]
[360189371,1746612642034,-500.0,0.00019518,2]
[360189372,1746612642043,-450.0,0.00019518,2]
[360189373,1746612642052,-210.97348375,0.00019518,2]
[360189374,1746612642061,-450.0,0.00019518,2]
[360189375,1746612642071,-450.0,0.00019518,2]
[360189376,1746612642080,-450.0,0.00019518,2]
[360189377,1746612642089,-507.89,0.00019518,2]
[360189378,1746612642098,-450.0,0.00019518,2]
[360189379,1746612642108,-797.04,0.00019518,2]
[360189380,1746612642117,-1680.21,0.00019518,2]
[360189381,1746612642126,-470.0,0.00019518,2]
[360189382,1746612642135,-166.62144619,0.00019518,2]
[360189383,1746612642144,-496.5665077,0.00019518,2]
[360189384,1746612642153,-450.0,0.00019518,2]
[360189385,1746612642163,-258.70741301,0.00019518,2]
[360189386,1746612642172,-450.0,0.00019518,2]
[360189387,1746612642180,-1897.08,0.00019518,2]
[360189388,1746612642190,-450.0,0.00019518,2]
[360189389,1746612642199,-969.9,0.00019518,2]
[360189390,1746612642208,-969.9,0.00019518,2]
[360189391,1746612642217,-450.0,0.00019518,2]
[360189392,1746612642227,-696.11,0.00019518,2]
[360189393,1746612642237,-1095.46,0.00019518,2]
[360189394,1746612642247,-1752.3,0.00019518,2]
[360189395,1746612642256,-450.0,0.00019518,2]
[360189396,1746612642266,-450.0,0.00019518,2]
[360189397,1746612642275,-450.0,0.00019518,2]
[360189398,1746612642285,-640.53,0.00019518,2]
[360189399,1746612642295,-640.53,0.00019518,2]
[360189400,1746612642305,-450.0,0.00019518,2]
[360189401,1746612642315,-450.0,0.00019518,2]
[360189402,1746612642324,-450.0,0.00019518,2]
[360189403,1746612642333,-450.0,0.00019518,2]
[360189404,1746612642343,-450.0,0.00019518,2]
[360189405,1746612642353,-2987.23,0.00019518,2]
[360189406,1746612642362,-450.0,0.00019518,2]
[360189407,1746612642372,-450.0,0.00019518,2]
[360189408,1746612642381,-686.73,0.00019518,2]
[360189409,1746612642391,-450.0,0.00019518,2]
[360189410,1746612642400,-450.0,0.00019518,2]
[360189411,1746612642409,-450.0,0.00019518,2]
[360189412,1746612642418,-450.0,0.00019518,2]
[360189413,1746612642428,-570.28,0.00019518,2]
[360189414,1746612642437,-450.0,0.00019518,2]